[Event "TOP 12 FEMININ 2022 - Phase 1"]
[Site "MULHOUSE, France"]
[Date "2022.04.09"]
[Round "3.14"]
[White "TERRAZZONI  DOM, Claire"]
[Black "MOINGT  ASN, Anne"]
[Result "0-1"]
[TimeControl "90 min +30 secondes par coup"]
[WhiteElo "1794"]
[BlackElo "2036"]

1. e4 {[%clk 01:30:34]} {[%emt 00:00:26]} c5 {[%clk 01:30:54]} {[%emt
00:00:06]} 2. Nf3 {[%clk 01:30:41]} {[%emt 00:00:23]} d6 {[%clk 01:31:19]}
{[%emt 00:00:04]} 3. d4 {[%clk 01:30:43]} {[%emt 00:00:29]} cxd4 {[%clk
01:31:45]} {[%emt 00:00:04]} 4. Nxd4 {[%clk 01:30:50]} {[%emt 00:00:23]} Nf6
{[%clk 01:32:11]} {[%emt 00:00:05]} 5. Nc3 {[%clk 01:30:33]} {[%emt 00:00:47]}
e6 {[%clk 01:32:16]} {[%emt 00:00:25]} 6. Be2 {[%clk 01:18:47]} {[%emt
00:12:15]} Be7 {[%clk 01:32:24]} {[%emt 00:00:22]} 7. Be3 {[%clk 01:14:19]}
{[%emt 00:04:58]} Nc6 {[%clk 01:32:05]} {[%emt 00:00:48]} 8. h3 {[%clk
01:07:42]} {[%emt 00:07:08]} a6 {[%clk 01:25:28]} {[%emt 00:07:07]} 9. Qd2
{[%clk 01:03:52]} {[%emt 00:04:20]} O-O {[%clk 01:15:32]} {[%emt 00:10:26]} 10.
O-O-O {[%clk 00:59:26]} {[%emt 00:04:56]} Qc7 {[%clk 01:03:45]} {[%emt
00:12:18]} 11. g4 {[%clk 00:51:37]} {[%emt 00:08:18]} b5 {[%clk 00:57:22]}
{[%emt 00:06:52]} 12. Bd3 {[%clk 00:43:31]} {[%emt 00:08:36]} Bb7 {[%clk
00:51:52]} {[%emt 00:06:01]} 13. g5 {[%clk 00:32:35]} {[%emt 00:11:26]} Nd7
{[%clk 00:49:48]} {[%emt 00:02:33]} 14. Nxc6 {[%clk 00:26:55]} {[%emt
00:06:11]} Bxc6 {[%clk 00:48:18]} {[%emt 00:02:00]} 15. Ne2 {[%clk 00:17:29]}
{[%emt 00:09:56]} Nc5 {[%clk 00:40:52]} {[%emt 00:07:57]} 16. Ng3 {[%clk
00:13:55]} {[%emt 00:04:03]} Nxd3+ {[%clk 00:37:36]} {[%emt 00:03:45]} 17. Qxd3
{[%clk 00:14:08]} {[%emt 00:00:17]} d5 {[%clk 00:37:05]} {[%emt 00:01:02]} 18.
Rhg1 {[%clk 00:06:50]} {[%emt 00:07:47]} Rfd8 {[%clk 00:35:05]} {[%emt
00:02:31]} 19. e5 {[%clk 00:04:20]} {[%emt 00:03:01]} Qxe5 {[%clk 00:26:52]}
{[%emt 00:08:42]} 20. f4 {[%clk 00:03:55]} {[%emt 00:00:56]} Qc7 {[%clk
00:27:18]} {[%emt 00:00:03]} 21. f5 {[%clk 00:02:34]} {[%emt 00:01:52]} d4
{[%clk 00:26:47]} {[%emt 00:01:00]} 22. Bd2 {[%clk 00:02:17]} {[%emt 00:00:46]}
Bd6 {[%clk 00:19:54]} {[%emt 00:07:24]} 23. g6 {[%clk 00:00:54]} {[%emt
00:01:53]} fxg6 {[%clk 00:20:13]} {[%emt 00:00:11]} 24. fxg6 {[%clk 00:00:36]}
{[%emt 00:00:48]} h6 {[%clk 00:20:34]} {[%emt 00:00:09]} 25. Rdf1 {[%clk
00:00:34]} {[%emt 00:00:31]} Rf8 {[%clk 00:20:38]} {[%emt 00:00:26]} 26. Ne4
{[%clk 00:00:36]} {[%emt 00:00:29]} Bh2 {[%clk 00:18:12]} {[%emt 00:02:55]} 27.
Rh1 {[%clk 00:00:34]} {[%emt 00:00:33]} Bf4 {[%clk 00:17:36]} {[%emt 00:01:06]}
28. Bxf4 {[%clk 00:00:35]} {[%emt 00:00:29]} Rxf4 {[%clk 00:18:05]} {[%emt
00:00:01]} 29. Re1 {[%clk 00:00:38]} {[%emt 00:00:27]} Qe5 {[%clk 00:13:41]}
{[%emt 00:04:54]} 30. Nd2 {[%clk 00:00:32]} {[%emt 00:00:36]} Qf6 {[%clk
00:14:07]} {[%emt 00:00:03]} 31. Rhg1 {[%clk 00:00:33]} {[%emt 00:00:30]} Rd8
{[%clk 00:12:12]} {[%emt 00:02:24]} 32. Qe2 {[%clk 00:00:40]} {[%emt 00:00:23]}
Bd5 {[%clk 00:12:15]} {[%emt 00:00:27]} 33. a3 {[%clk 00:00:40]} {[%emt
00:00:30]} Rc8 {[%clk 00:09:55]} {[%emt 00:02:51]} 34. Qd3 {[%clk 00:00:36]}
{[%emt 00:00:35]} e5 {[%clk 00:07:17]} {[%emt 00:03:07]} 35. Re2 {[%clk
00:00:39]} {[%emt 00:00:27]} Re8 {[%clk 00:04:43]} {[%emt 00:03:04]} 36. Rge1
{[%clk 00:00:49]} {[%emt 00:00:20]} Re6 {[%clk 00:03:18]} {[%emt 00:01:55]} 37.
Qg3 {[%clk 00:00:35]} {[%emt 00:00:45]} e4 {[%clk 00:02:45]} {[%emt 00:01:03]}
38. Nb3 {[%clk 00:00:32]} {[%emt 00:00:32]} d3 {[%clk 00:02:26]} {[%emt
00:00:49]} 39. Re3 {[%clk 00:00:36]} {[%emt 00:00:26]} Bxb3 {[%clk 00:02:12]}
{[%emt 00:00:44]} 40. cxb3 {[%clk 00:01:02]} {[%emt 00:00:04]} Rc6+ {[%clk
00:02:31]} {[%emt 00:00:11]} 41. Kb1 {[%clk 00:00:34]} {[%emt 00:00:57]} Rc2
{[%clk 00:02:54]} {[%emt 00:00:07]} 0-1

[Event "TOP 12 FEMININ 2022 - Phase 1"]
[Site "MULHOUSE, France"]
[Date "2022.04.09"]
[Round "3.15"]
[White "MULLER ASN, Veronique"]
[Black "LANGER  DOM, Karele"]
[Result "1/2-1/2"]
[TimeControl "90 min +30 secondes par coup"]
[WhiteElo "1990"]
[BlackElo "1476"]

1. e4 {[%clk 01:30:59]} {[%emt 00:00:03]} c5 {[%clk 01:30:55]} {[%emt
00:00:04]} 2. Nf3 {[%clk 01:31:23]} {[%emt 00:00:06]} e6 {[%clk 01:31:15]}
{[%emt 00:00:11]} 3. c3 {[%clk 01:31:48]} {[%emt 00:00:04]} Nf6 {[%clk
01:31:31]} {[%emt 00:00:14]} 4. Bd3 {[%clk 01:28:07]} {[%emt 00:04:10]} Nc6
{[%clk 01:28:13]} {[%emt 00:03:48]} 5. Bc2 {[%clk 01:27:57]} {[%emt 00:00:41]}
Be7 {[%clk 01:27:17]} {[%emt 00:01:26]} 6. O-O {[%clk 01:28:00]} {[%emt
00:00:27]} O-O {[%clk 01:26:58]} {[%emt 00:00:49]} 7. a3 {[%clk 01:26:00]}
{[%emt 00:02:30]} b6 {[%clk 01:18:29]} {[%emt 00:08:59]} 8. d4 {[%clk
01:25:17]} {[%emt 00:01:13]} cxd4 {[%clk 01:18:36]} {[%emt 00:00:23]} 9. cxd4
{[%clk 01:25:35]} {[%emt 00:00:11]} d6 {[%clk 01:16:48]} {[%emt 00:02:19]} 10.
Nc3 {[%clk 01:24:12]} {[%emt 00:01:53]} Bb7 {[%clk 01:16:51]} {[%emt 00:00:27]}
11. Re1 {[%clk 01:23:41]} {[%emt 00:01:01]} Rc8 {[%clk 01:13:39]} {[%emt
00:03:41]} 12. h3 {[%clk 01:18:55]} {[%emt 00:05:16]} Re8 {[%clk 01:08:35]}
{[%emt 00:05:34]} 13. Qe2 {[%clk 01:15:38]} {[%emt 00:03:47]} Na5 {[%clk
00:50:56]} {[%emt 00:18:09]} 14. Ba4 {[%clk 01:04:17]} {[%emt 00:11:50]} Bc6
{[%clk 00:48:42]} {[%emt 00:02:44]} 15. Bc2 {[%clk 01:01:43]} {[%emt 00:03:04]}
Bb7 {[%clk 00:47:23]} {[%emt 00:01:50]} 16. e5 {[%clk 00:53:04]} {[%emt
00:09:09]} dxe5 {[%clk 00:46:35]} {[%emt 00:01:17]} 17. dxe5 {[%clk 00:52:26]}
{[%emt 00:01:08]} Nd5 {[%clk 00:46:31]} {[%emt 00:00:34]} 18. Qd3 {[%clk
00:50:11]} {[%emt 00:02:45]} g6 {[%clk 00:45:38]} {[%emt 00:01:24]} 19. Ne4
{[%clk 00:48:42]} {[%emt 00:01:58]} Qc7 {[%clk 00:42:01]} {[%emt 00:04:08]} 20.
Ba4 {[%clk 00:48:05]} {[%emt 00:01:07]} Red8 {[%clk 00:42:11]} {[%emt
00:00:20]} 21. Qe2 {[%clk 00:46:46]} {[%emt 00:01:50]} Qc4 {[%clk 00:41:27]}
{[%emt 00:01:13]} 22. Bb5 {[%clk 00:39:42]} {[%emt 00:07:33]} Qxe2 {[%clk
00:41:12]} {[%emt 00:00:46]} 23. Bxe2 {[%clk 00:39:18]} {[%emt 00:00:53]} Nb3
{[%clk 00:40:34]} {[%emt 00:01:09]} 24. Rb1 {[%clk 00:38:28]} {[%emt 00:01:20]}
Nxc1 {[%clk 00:40:51]} {[%emt 00:00:13]} 25. Rbxc1 {[%clk 00:38:29]} {[%emt
00:00:29]} Rxc1 {[%clk 00:40:46]} {[%emt 00:00:35]} 26. Rxc1 {[%clk 00:38:57]}
{[%emt 00:00:02]} Nf4 {[%clk 00:40:54]} {[%emt 00:00:21]} 27. Ng3 {[%clk
00:38:13]} {[%emt 00:01:14]} Nxe2+ {[%clk 00:40:39]} {[%emt 00:00:45]} 28. Nxe2
{[%clk 00:38:41]} {[%emt 00:00:03]} Ba6 {[%clk 00:38:47]} {[%emt 00:02:21]} 29.
Ng3 {[%clk 00:37:45]} {[%emt 00:01:26]} Rd7 {[%clk 00:36:56]} {[%emt 00:02:22]}
30. Ne4 {[%clk 00:34:57]} {[%emt 00:03:17]} Kg7 {[%clk 00:34:33]} {[%emt
00:02:53]} 31. Kh2 {[%clk 00:27:47]} {[%emt 00:07:40]} Bb7 {[%clk 00:32:14]}
{[%emt 00:02:49]} 32. Ng3 {[%clk 00:24:43]} {[%emt 00:03:35]} Bc5 {[%clk
00:31:59]} {[%emt 00:00:45]} 33. Rc2 {[%clk 00:24:42]} {[%emt 00:00:31]} a5
{[%clk 00:30:12]} {[%emt 00:02:16]} 34. Ng5 {[%clk 00:22:22]} {[%emt 00:02:50]}
Rd4 {[%clk 00:22:14]} {[%emt 00:08:26]} 35. Nf3 {[%clk 00:19:02]} {[%emt
00:03:53]} Rd7 {[%clk 00:20:16]} {[%emt 00:02:27]} 36. Ng5 {[%clk 00:18:48]}
{[%emt 00:00:44]} Rd4 {[%clk 00:18:20]} {[%emt 00:02:27]} 37. Nf3 {[%clk
00:18:56]} {[%emt 00:00:22]} Bxf3 {[%clk 00:18:14]} {[%emt 00:00:36]} 38. gxf3
{[%clk 00:19:24]} {[%emt 00:00:01]} Rd5 {[%clk 00:16:19]} {[%emt 00:02:26]} 39.
f4 {[%clk 00:17:55]} {[%emt 00:01:59]} g5 {[%clk 00:16:02]} {[%emt 00:00:47]}
40. fxg5 {[%clk 00:16:25]} {[%emt 00:01:59]} Rxe5 {[%clk 00:16:21]} {[%emt
00:00:11]} 41. f4 {[%clk 00:15:09]} {[%emt 00:01:46]} Rd5 {[%clk 00:16:04]}
{[%emt 00:00:47]} 42. Kg2 {[%clk 00:15:34]} {[%emt 00:00:06]} Be3 {[%clk
00:14:08]} {[%emt 00:02:25]} 43. Kf3 {[%clk 00:15:28]} {[%emt 00:00:36]} Rd2
{[%clk 00:08:54]} {[%emt 00:05:44]} 44. Rxd2 {[%clk 00:11:40]} {[%emt
00:04:19]} Bxd2 {[%clk 00:09:19]} {[%emt 00:00:04]} 45. a4 {[%clk 00:12:00]}
{[%emt 00:00:10]} Kg6 {[%clk 00:07:00]} {[%emt 00:02:49]} 46. Ne4 {[%clk
00:08:39]} {[%emt 00:03:52]} Bc1 {[%clk 00:06:15]} {[%emt 00:01:14]} 47. b3
{[%clk 00:09:08]} {[%emt 00:00:01]} e5 {[%clk 00:04:58]} {[%emt 00:01:47]} 48.
fxe5 {[%clk 00:06:03]} {[%emt 00:03:36]} Kf5 {[%clk 00:03:21]} {[%emt
00:02:07]} 1/2-1/2

[Event "TOP 12 FEMININ 2022 - Phase 1"]
[Site "MULHOUSE, France"]
[Date "2022.04.09"]
[Round "3.16"]
[White "GIROD  DOM, Sarah"]
[Black "STRASSER ASN, Arevik"]
[Result "0-1"]
[TimeControl "90 min +30 secondes par coup"]
[WhiteElo "1507"]
[BlackElo "1543"]

1. e4 {[%clk 01:30:55]} {[%emt 00:00:05]} e5 {[%clk 01:30:58]} {[%emt
00:00:05]} 2. Nf3 {[%clk 01:31:19]} {[%emt 00:00:05]} Nc6 {[%clk 01:31:21]}
{[%emt 00:00:06]} 3. d4 {[%clk 01:31:43]} {[%emt 00:00:06]} exd4 {[%clk
01:31:45]} {[%emt 00:00:06]} 4. Bc4 {[%clk 01:32:03]} {[%emt 00:00:12]} Nf6
{[%clk 01:20:51]} {[%emt 00:11:23]} 5. e5 {[%clk 01:31:50]} {[%emt 00:00:42]}
d5 {[%clk 01:21:04]} {[%emt 00:00:18]} 6. Bb5 {[%clk 01:17:49]} {[%emt
00:14:30]} Ne4 {[%clk 01:20:43]} {[%emt 00:00:51]} 7. Nxd4 {[%clk 01:08:42]}
{[%emt 00:09:36]} Bd7 {[%clk 00:58:54]} {[%emt 00:22:20]} 8. f3 {[%clk
00:49:39]} {[%emt 00:19:33]} Qh4+ {[%clk 00:56:06]} {[%emt 00:03:18]} 9. g3
{[%clk 00:47:07]} {[%emt 00:03:02]} Nxg3 {[%clk 00:55:43]} {[%emt 00:00:52]} 10.
hxg3 {[%clk 00:29:30]} {[%emt 00:18:07]} Qxh1+ {[%clk 00:55:38]} {[%emt
00:00:35]} 11. Bf1 {[%clk 00:29:56]} {[%emt 00:00:05]} Nxd4 {[%clk 00:52:28]}
{[%emt 00:03:39]} 12. Qxd4 {[%clk 00:30:03]} {[%emt 00:00:23]} Qxf3 {[%clk
00:52:16]} {[%emt 00:00:42]} 13. Bf4 {[%clk 00:28:54]} {[%emt 00:01:40]} Qe4+
{[%clk 00:46:50]} {[%emt 00:05:55]} 14. Qxe4 {[%clk 00:29:03]} {[%emt
00:00:21]} dxe4 {[%clk 00:47:19]} {[%emt 00:00:02]} 15. Nd2 {[%clk 00:28:59]}
{[%emt 00:00:34]} Bf5 {[%clk 00:44:00]} {[%emt 00:03:49]} 16. Bb5+ {[%clk
00:26:09]} {[%emt 00:03:20]} c6 {[%clk 00:43:57]} {[%emt 00:00:33]} 17. Bc4
{[%clk 00:26:21]} {[%emt 00:00:18]} Bc5 {[%clk 00:38:18]} {[%emt 00:06:08]} 18.
O-O-O {[%clk 00:23:16]} {[%emt 00:03:36]} Bf2 {[%clk 00:26:43]} {[%emt
00:12:04]} 19. Nf1 {[%clk 00:23:37]} {[%emt 00:00:10]} O-O {[%clk 00:24:46]}
{[%emt 00:02:26]} 20. Rd2 {[%clk 00:23:16]} {[%emt 00:00:52]} Bb6 {[%clk
00:18:41]} {[%emt 00:06:34]} 21. Re2 {[%clk 00:22:03]} {[%emt 00:01:44]} Rad8
{[%clk 00:18:15]} {[%emt 00:00:55]} 22. Nd2 {[%clk 00:22:13]} {[%emt 00:00:21]}
Rd7 {[%clk 00:13:20]} {[%emt 00:05:24]} 23. Nxe4 {[%clk 00:21:48]} {[%emt
00:00:56]} Bxe4 {[%clk 00:10:50]} {[%emt 00:03:00]} 24. Rxe4 {[%clk 00:20:20]}
{[%emt 00:01:59]} Rd4 {[%clk 00:11:18]} {[%emt 00:00:01]} 25. Rxd4 {[%clk
00:19:26]} {[%emt 00:01:24]} Bxd4 {[%clk 00:11:46]} {[%emt 00:00:02]} 26. c3
{[%clk 00:19:52]} {[%emt 00:00:03]} Bf2 {[%clk 00:11:03]} {[%emt 00:01:12]} 27.
Kd2 {[%clk 00:18:19]} {[%emt 00:02:05]} Re8 {[%clk 00:10:26]} {[%emt 00:01:06]}
28. Ke2 {[%clk 00:18:37]} {[%emt 00:00:13]} Bb6 {[%clk 00:09:20]} {[%emt
00:01:35]} 29. Kf3 {[%clk 00:19:06]} {[%emt 00:00:02]} h6 {[%clk 00:08:51]}
{[%emt 00:00:59]} 30. g4 {[%clk 00:18:34]} {[%emt 00:01:02]} Kf8 {[%clk
00:08:00]} {[%emt 00:01:21]} 31. Ke4 {[%clk 00:15:24]} {[%emt 00:03:40]} Bc7
{[%clk 00:07:23]} {[%emt 00:01:06]} 32. Kf5 {[%clk 00:13:38]} {[%emt 00:02:17]}
g6+ {[%clk 00:03:51]} {[%emt 00:04:02]} 33. Ke4 {[%clk 00:14:06]} {[%emt
00:00:01]} g5 {[%clk 00:03:01]} {[%emt 00:01:20]} 34. Bg3 {[%clk 00:14:36]} f6
{[%clk 00:02:55]} {[%emt 00:00:36]} 35. Bf2 {[%clk 00:11:51]} {[%emt 00:03:15]}
Bxe5 {[%clk 00:02:30]} {[%emt 00:00:53]} 36. Kd3 {[%clk 00:12:20]} {[%emt
00:00:03]} Rd8+ {[%clk 00:02:43]} {[%emt 00:00:17]} 37. Kc2 {[%clk 00:12:46]}
{[%emt 00:00:04]} b6 {[%clk 00:03:00]} {[%emt 00:00:13]} 38. Be6 {[%clk
00:13:00]} {[%emt 00:00:15]} Bf4 {[%clk 00:03:26]} {[%emt 00:00:05]} 39. Bg1
{[%clk 00:10:59]} {[%emt 00:02:30]} Kg7 {[%clk 00:03:15]} {[%emt 00:00:41]} 40.
Bf5 {[%clk 00:11:28]} {[%emt 00:00:02]} Rd5 {[%clk 00:02:26]} {[%emt 00:01:17]}
41. Be4 {[%clk 00:11:56]} {[%emt 00:00:03]} Rd2+ {[%clk 00:02:43]} {[%emt
00:00:13]} 42. Kb3 {[%clk 00:12:24]} {[%emt 00:00:03]} c5 {[%clk 00:02:36]}
{[%emt 00:00:37]} 43. Ka3 {[%clk 00:12:50]} {[%emt 00:00:04]} Rd1 {[%clk
00:01:19]} {[%emt 00:01:46]} 44. Bf2 {[%clk 00:13:19]} {[%emt 00:00:02]} Rf1
{[%clk 00:01:30]} {[%emt 00:00:17]} 45. Bxc5 {[%clk 00:13:48]} {[%emt
00:00:03]} bxc5 {[%clk 00:01:47]} {[%emt 00:00:13]} 46. b3 {[%clk 00:13:03]}
{[%emt 00:01:15]} Re1 {[%clk 00:01:21]} {[%emt 00:00:56]} 47. Bf5 {[%clk
00:13:31]} {[%emt 00:00:02]} Re5 {[%clk 00:01:37]} {[%emt 00:00:14]} 48. Ka4
{[%clk 00:13:50]} {[%emt 00:00:11]} Rxf5 {[%clk 00:01:53]} {[%emt 00:00:14]} 49.
gxf5 {[%clk 00:14:16]} {[%emt 00:00:04]} h5 {[%clk 00:01:48]} {[%emt 00:00:34]}
50. Kb5 {[%clk 00:14:42]} {[%emt 00:00:04]} h4 {[%clk 00:02:07]} {[%emt
00:00:11]} 51. Kxc5 {[%clk 00:15:11]} {[%emt 00:00:02]} h3 {[%clk 00:02:26]}
{[%emt 00:00:10]} 0-1

[Event "TOP 12 FEMININ 2022 - Phase 1"]
[Site "MULHOUSE, France"]
[Date "2022.04.09"]
[Round "3.17"]
[White "BULMAGA CAN, Irina"]
[Black "KOVACS  STR, Klara"]
[Result "1-0"]
[TimeControl "90 min +30 secondes par coup"]
[WhiteElo "2379"]
[BlackElo "2117"]

1. e4 {[%clk 01:30:57]} {[%emt 15:14:21]} e6 {[%clk 01:30:54]} {[%emt
00:00:06]} 2. d4 {[%clk 01:31:20]} {[%emt 00:00:07]} d5 {[%clk 01:31:19]}
{[%emt 00:00:05]} 3. Nc3 {[%clk 01:31:43]} {[%emt 00:00:07]} Nf6 {[%clk
01:31:43]} {[%emt 00:00:07]} 4. Bg5 {[%clk 01:32:05]} {[%emt 00:00:08]} Be7
{[%clk 01:32:07]} {[%emt 00:00:06]} 5. e5 {[%clk 01:32:27]} {[%emt 00:00:10]}
Nfd7 {[%clk 01:32:32]} {[%emt 00:00:03]} 6. Bxe7 {[%clk 01:32:48]} {[%emt
00:00:09]} Qxe7 {[%clk 01:32:59]} {[%emt 00:00:04]} 7. f4 {[%clk 01:33:08]}
{[%emt 00:00:09]} O-O {[%clk 01:33:24]} {[%emt 00:00:06]} 8. Nf3 {[%clk
01:33:09]} {[%emt 00:00:29]} c5 {[%clk 01:33:46]} {[%emt 00:00:07]} 9. Qd2
{[%clk 01:31:13]} {[%emt 00:02:26]} Nc6 {[%clk 01:34:09]} {[%emt 00:00:08]} 10.
dxc5 {[%clk 01:31:11]} {[%emt 00:00:31]} Nxc5 {[%clk 01:34:30]} {[%emt
00:00:09]} 11. Qe3 {[%clk 01:31:03]} {[%emt 00:00:38]} a6 {[%clk 01:34:17]}
{[%emt 00:00:43]} 12. a3 {[%clk 01:29:06]} {[%emt 00:02:27]} b5 {[%clk
01:27:37]} {[%emt 00:07:10]} 13. b4 {[%clk 01:25:57]} {[%emt 00:03:39]} Nd7
{[%clk 01:27:48]} {[%emt 00:00:18]} 14. Bd3 {[%clk 01:25:30]} {[%emt 00:00:58]}
Rd8 {[%clk 01:27:31]} {[%emt 00:00:48]} 15. Ne2 {[%clk 01:22:35]} {[%emt
00:03:24]} Bb7 {[%clk 01:27:15]} {[%emt 00:00:46]} 16. O-O {[%clk 01:21:00]}
{[%emt 00:02:05]} Nf8 {[%clk 01:22:01]} {[%emt 00:05:43]} 17. Ned4 {[%clk
01:18:16]} {[%emt 00:03:15]} Rac8 {[%clk 01:20:20]} {[%emt 00:02:11]} 18. f5
{[%clk 01:08:59]} {[%emt 00:09:47]} exf5 {[%clk 01:07:06]} {[%emt 00:13:45]} 19.
Nxf5 {[%clk 01:07:06]} {[%emt 00:02:22]} Qe8 {[%clk 01:07:01]} {[%emt
00:00:36]} 20. Qg5 {[%clk 01:05:44]} {[%emt 00:01:51]} Ne6 {[%clk 01:00:10]}
{[%emt 00:07:22]} 21. Qh4 {[%clk 01:05:02]} {[%emt 00:01:11]} Qf8 {[%clk
00:54:40]} {[%emt 00:06:01]} 22. Ne7+ {[%clk 01:04:39]} {[%emt 00:00:52]} 1-0

[Event "TOP 12 FEMININ 2022 - Phase 1"]
[Site "MULHOUSE, France"]
[Date "2022.04.09"]
[Round "3.18"]
[White "ROOS  STR, Louise"]
[Black "BENSDORP-DE LABACA CAN, Marlies"]
[Result "0-1"]
[TimeControl "90 min +30 secondes par coup"]
[WhiteElo "1803"]
[BlackElo "2234"]

1. e4 {[%clk 01:30:58]} {[%emt 00:00:02]} d5 {[%clk 01:30:56]} {[%emt
00:00:04]} 2. exd5 {[%clk 01:30:53]} {[%emt 00:00:35]} Qxd5 {[%clk 01:31:20]}
{[%emt 00:00:05]} 3. Nc3 {[%clk 01:31:19]} {[%emt 00:00:05]} Qa5 {[%clk
01:31:43]} {[%emt 00:00:07]} 4. Bc4 {[%clk 01:30:51]} {[%emt 00:00:56]} Nf6
{[%clk 01:32:02]} {[%emt 00:00:12]} 5. d3 {[%clk 01:27:07]} {[%emt 00:04:15]}
c5 {[%clk 01:30:46]} {[%emt 00:01:45]} 6. h3 {[%clk 01:25:29]} {[%emt
00:02:08]} e6 {[%clk 01:29:40]} {[%emt 00:01:36]} 7. Bd2 {[%clk 01:23:28]}
{[%emt 00:02:30]} Qd8 {[%clk 01:29:57]} {[%emt 00:00:14]} 8. Nf3 {[%clk
01:22:24]} {[%emt 00:01:34]} Nc6 {[%clk 01:30:15]} {[%emt 00:00:12]} 9. O-O
{[%clk 01:21:32]} {[%emt 00:01:21]} Be7 {[%clk 01:30:41]} {[%emt 00:00:04]} 10.
Re1 {[%clk 01:21:03]} {[%emt 00:01:00]} O-O {[%clk 01:30:21]} {[%emt 00:00:50]}
11. Ne4 {[%clk 01:08:21]} {[%emt 00:13:12]} a6 {[%clk 01:30:21]} {[%emt
00:00:29]} 12. a4 {[%clk 01:06:34]} {[%emt 00:02:18]} b6 {[%clk 01:30:04]}
{[%emt 00:00:47]} 13. Qe2 {[%clk 00:53:09]} {[%emt 00:13:54]} h6 {[%clk
01:19:32]} {[%emt 00:11:03]} 14. Ng3 {[%clk 00:48:32]} {[%emt 00:05:07]} Bb7
{[%clk 01:17:22]} {[%emt 00:02:40]} 15. Bxe6 {[%clk 00:41:21]} {[%emt
00:07:41]} fxe6 {[%clk 01:17:28]} {[%emt 00:00:24]} 16. Qxe6+ {[%clk 00:41:49]}
{[%emt 00:00:02]} Rf7 {[%clk 01:14:33]} {[%emt 00:03:24]} 17. Nf5 {[%clk
00:28:16]} {[%emt 00:14:03]} Bf8 {[%clk 01:11:05]} {[%emt 00:03:58]} 18. N3h4
{[%clk 00:21:12]} {[%emt 00:07:35]} Qd5 {[%clk 01:05:13]} {[%emt 00:06:20]} 19.
Ng6 {[%emt 00:05:12]} Qxe6 {[%clk 00:58:19]} {[%emt 00:07:23]} 20. Rxe6 {[%clk
00:16:56]} {[%emt 00:00:07]} Nd5 {[%clk 00:44:12]} {[%emt 00:14:36]} 21. Ng3
{[%clk 00:11:47]} {[%emt 00:05:38]} Nd4 {[%clk 00:43:43]} {[%emt 00:01:00]} 22.
Nxf8 {[%clk 00:08:54]} {[%emt 00:03:23]} Raxf8 {[%clk 00:43:48]} {[%emt
00:00:25]} 23. Rg6 {[%clk 00:09:02]} {[%emt 00:00:22]} Kh7 {[%clk 00:43:32]}
{[%emt 00:00:46]} 24. Rd6 {[%clk 00:09:09]} {[%emt 00:00:23]} Nxc2 {[%clk
00:39:50]} {[%emt 00:04:12]} 25. Rf1 {[%clk 00:08:20]} {[%emt 00:01:19]} Nd4
{[%clk 00:39:16]} {[%emt 00:01:04]} 0-1